fUST/lending_fUST_20250921
["ID","MTS","AMOUNT","RATE_DAILY","PERIOD"]
[386559324,1758393342597,150.0,0.00019259,2]
[386559325,1758393342990,190.06,0.00020176,2]
[386559326,1758393360336,263.7162239,0.00019607,2]
[386559327,1758393396576,-1200.0,0.00020603,2]
[386559328,1758393396607,-300.0,0.00020603,2]
[386559329,1758393396635,-309.01263862,0.00020603,2]
[386559330,1758393396663,-411.30329078,0.00020603,2]
[386559331,1758393396694,-200.01530912,0.00020603,2]
[386559332,1758393396724,-1177.07,0.00020604,2]
[386559333,1758393396752,-480.0,0.00020604,2]
[386559334,1758393406493,-2486.33,0.00020604,2]
[386559335,1758393406522,-300.0,0.00020604,2]
[386559336,1758393406551,-300.0,0.00020604,2]
[386559337,1758393406580,-300.0,0.00020604,2]
[386559338,1758393406609,-480.0,0.00020604,2]
[386559339,1758393406637,-500.0,0.00020604,2]
[386559340,1758393406667,-536.18,0.00020604,2]
[386559341,1758393422360,150.0,0.00019328,2]
[386559342,1758393422826,182.42,0.00020249,2]
[386559344,1758393469014,231.50009895,0.00020511,2]
[386559345,1758393481532,150.85,0.00017203,2]
[386559346,1758393481809,150.85,0.00017203,2]
[386559347,1758393482094,150.85,0.00017203,2]
[386559348,1758393502205,150.0,0.00019234,2]
[386559349,1758393502607,173.96,0.0002015,2]
[386559350,1758393513335,2903.86926241,0.000199,2]
[386559351,1758393516768,-300.0,0.00020602,2]
[386559352,1758393516797,-480.0,0.00020603,2]
[386559353,1758393516825,-480.0,0.00020603,2]
[386559354,1758393516853,-480.0,0.00020603,2]
[386559355,1758393516881,-1337.6,0.00020603,2]
[386559356,1758393516909,-160.0,0.00020604,2]
[386559357,1758393516937,-194.99,0.00020604,2]
[386559358,1758393516965,-1412.59,0.00020604,2]
[386559359,1758393520466,250.0,0.00020386,2]
[386559363,1758393582824,150.0,0.0001923,2]
[386559364,1758393583226,166.54,0.00020146,2]
[386559365,1758393591932,-1349.77,0.00020603,2]
[386559366,1758393591961,-300.0,0.00020603,2]
[386559367,1758393591990,-480.0,0.00020603,2]
[386559368,1758393592019,-988.78,0.00020603,2]
[386559369,1758393592046,-480.0,0.00020604,2]
[386559370,1758393592076,-405.96,0.00020604,2]
[386559371,1758393601932,-1990.99,0.00020604,2]
[386559372,1758393601963,-480.0,0.00020604,2]
[386559373,1758393601993,-480.0,0.00020604,2]
[386559374,1758393602026,-480.0,0.00020604,2]
[386559375,1758393602055,-480.0,0.00020604,2]
[386559376,1758393602082,-480.0,0.00020604,2]
[386559377,1758393602111,-480.0,0.00020604,2]
[386559378,1758393613174,10000.01,0.00020509,2]
[386559379,1758393613197,10000.01,0.00020509,2]
[386559380,1758393613218,10000.01,0.00020509,2]
[386559381,1758393613241,10000.01,0.00020509,2]
[386559382,1758393613263,10000.01,0.00020509,2]
[386559383,1758393613285,10000.01,0.00020509,2]
[386559384,1758393613312,30110.49062207,0.00020509,2]
[386559385,1758393663446,150.0,0.00019238,2]
[386559386,1758393663880,158.48,0.00020154,2]
[386559387,1758393695949,2807.07362032,0.000199,2]
[386559389,1758393721974,302.45563732,0.00019801,2]
[386559390,1758393722014,185.84855178,0.00019999,4]
[386559391,1758393745089,150.0,0.00019236,2]
[386559392,1758393745522,150.63,0.00020152,2]
[386559393,1758393809353,185.20007916,0.00020511,2]
[386559395,1758393822623,-1200.0,0.00020598,2]
[386559396,1758393822652,-300.0,0.00020598,2]
[386559397,1758393822679,-160.0,0.00020599,2]
[386559398,1758393822708,-151.0,0.00020599,2]
[386559399,1758393822737,-151.0,0.00020599,2]
[386559400,1758393822765,-151.0,0.00020599,2]
[386559401,1758393822794,-151.0,0.00020599,2]
[386559402,1758393822822,-151.0,0.00020599,2]
[386559403,1758393822850,-151.0,0.00020599,2]
[386559404,1758393822879,-151.0,0.00020599,2]
[386559405,1758393822907,-151.0,0.00020599,2]
[386559406,1758393825565,150.0,0.00019235,2]
[386559407,1758393825962,150.0,0.00020151,2]
[386559408,1758393842351,300.0,0.00020598,2]
[386559409,1758393867634,309.98845304,0.00020502,2]
[386559414,1758393877489,2713.50449972,0.000199,2]
[386559420,1758393906845,150.0,0.00019224,2]
[386559421,1758393907289,150.0,0.00020139,2]
[386559432,1758393935907,800.0,0.00020525,2]
[386559433,1758393936140,800.0,0.00020449,2]
[386559434,1758393941883,154.878561,0.00020399,2]
[386559435,1758393942248,154.878561,0.00019754,3]
[386559443,1758393987426,150.0,0.00019224,2]
[386559444,1758393987872,150.0,0.0002014,2]
[386559446,1758393992902,-300.0,0.00020596,2]
[386559447,1758393992931,-287.91230355,0.00020597,2]
[386559448,1758393992958,-216.30884704,0.00020597,2]
[386559449,1758393992987,-300.0,0.00020597,2]
[386559450,1758393993016,-300.0,0.00020597,2]
[386559451,1758393993047,-233.0,0.00020597,2]
[386559452,1758393993078,-1200.0,0.00020597,2]
[386559453,1758393993755,500.0,0.00020597,2]
[386559454,1758393993793,500.0,0.00020597,2]
[386559455,1758393993826,500.0,0.00020597,2]
[386559456,1758393993854,500.0,0.00020597,2]
[386559457,1758393993883,463.42143325,0.00020597,2]
[386559458,1758393993919,500.0,0.00020597,2]
[386559459,1758393993948,500.0,0.00020597,2]
[386559460,1758393993981,218.62072068,0.00020597,2]
[386559461,1758393994009,247.08877405,0.00020597,2]
[386559462,1758393994038,396.43677084,0.00020597,2]
[386559542,1758394063686,150.0,0.00019222,2]
[386559543,1758394064125,150.0,0.00020137,2]
[386559544,1758394064557,2623.05434971,0.000199,2]
[386559545,1758394139482,150.0,0.00019219,2]
[386559546,1758394139924,150.0,0.00020134,2]
[386559547,1758394149642,185.20007916,0.00020511,2]
[386559548,1758394169843,168.055172,0.00019601,2]
[386559549,1758394217149,150.0,0.00019218,2]
[386559550,1758394217541,150.0,0.00020133,2]
[386559601,1758394232456,-300.0,0.00020595,2]
[386559603,1758394232466,-300.0,0.00020595,2]
[386559605,1758394232475,-308.0,0.00020595,2]
[386559607,1758394232484,-500.0,0.00020596,2]
[386559610,1758394232494,-500.0,0.00020596,2]
[386559611,1758394232503,-500.0,0.00020596,2]
[386559614,1758394232512,-463.58843262,0.00020596,2]
[386559616,1758394232522,-500.0,0.00020596,2]
[386559618,1758394232531,-500.0,0.00020596,2]
[386559620,1758394232540,-500.0,0.00020596,2]
[386559622,1758394232550,-500.0,0.00020596,2]
[386559624,1758394232559,-500.0,0.00020596,2]
[386559626,1758394232568,-500.0,0.00020596,2]
[386559628,1758394232580,-482.80528874,0.00020596,2]
[386559630,1758394232589,-500.0,0.00020596,2]
[386559632,1758394232598,-500.0,0.00020596,2]
[386559634,1758394232607,-500.0,0.00020596,2]
[386559636,1758394232617,-500.0,0.00020596,2]
[386559637,1758394232626,-500.0,0.00020596,2]
[386559640,1758394232636,-500.0,0.00020596,2]
[386559641,1758394232646,-500.0,0.00020596,2]
[386559643,1758394232659,-500.0,0.00020596,2]
[386559645,1758394232669,-500.0,0.00020596,2]
[386559647,1758394232679,-500.0,0.00020596,2]
[386559650,1758394232688,-500.0,0.00020596,2]
[386559651,1758394232699,-500.0,0.00020596,2]
[386559653,1758394232710,-500.0,0.00020596,2]
[386559655,1758394232721,-574.7088774,0.00020596,2]
[386559658,1758394232732,-335.92634142,0.00020596,2]
[386559659,1758394232743,-500.0,0.00020596,2]
[386559661,1758394232752,-500.0,0.00020596,2]
[386559663,1758394232762,-500.0,0.00020596,2]
[386559666,1758394232771,-500.0,0.00020596,2]
[386559667,1758394232780,-500.0,0.00020596,2]
[386559669,1758394232789,-500.0,0.00020596,2]
[386559671,1758394232798,-500.0,0.00020596,2]
[386559673,1758394232807,-500.0,0.00020596,2]
[386559675,1758394232816,-500.0,0.00020596,2]
[386559677,1758394232826,-208.73652929,0.00020596,2]
[386559679,1758394232835,-500.0,0.00020596,2]
[386559681,1758394232845,-500.0,0.00020596,2]
[386559683,1758394232854,-500.0,0.00020596,2]
[386559685,1758394232863,-500.0,0.00020596,2]
[386559687,1758394232873,-500.0,0.00020596,2]
[386559689,1758394232882,-500.0,0.00020596,2]
[386559691,1758394232892,-500.0,0.00020596,2]
[386559693,1758394232902,-500.0,0.00020596,2]
[386559695,1758394232911,-500.0,0.00020596,2]
[386559697,1758394232921,-635.88432617,0.00020596,2]
[386559699,1758394232930,-500.0,0.00020596,2]
[386559701,1758394232940,-492.41289752,0.00020596,2]
[386559825,1758394238293,-500.0,0.00020595,2]
[386559826,1758394238303,-500.0,0.00020595,2]
[386559827,1758394238312,-203.99181571,0.00020595,2]
[386559828,1758394238321,-230.5232086,0.00020595,2]
[386559829,1758394238330,-225.76359499,0.00020595,2]
[386559830,1758394238340,-500.0,0.00020595,2]
[386559831,1758394238349,-412.08183659,0.00020595,2]
[386559832,1758394238358,-201.53861249,0.00020595,2]
[386559833,1758394238367,-24759.38144007,0.00020596,2]
[386559834,1758394238376,-1200.0,0.00020596,2]
[386559835,1758394238385,-497.04936136,0.00020596,2]
[386559836,1758394238394,-480.0,0.00020596,2]
[386559837,1758394238404,-1281.87,0.00020596,2]
[386559838,1758394238413,-480.0,0.00020598,2]
[386559839,1758394238422,-480.0,0.00020598,2]
[386559840,1758394238431,-480.0,0.00020598,2]
[386559841,1758394238450,-530.02741828,0.00020598,2]
[386559842,1758394238460,-374.47906482,0.00020598,2]
[386559843,1758394238470,-480.0,0.00020598,2]
[386559844,1758394238480,-480.0,0.00020598,2]
[386559845,1758394238490,-241.89476825,0.00020598,2]
[386559846,1758394238499,-480.0,0.00020598,2]
[386559847,1758394238509,-470.75255859,0.00020598,2]
[386559848,1758394238518,-488.50358639,0.00020598,2]
[386559849,1758394238528,-471.54255488,0.00020598,2]
[386559850,1758394238539,-488.02138071,0.00020598,2]
[386559851,1758394238549,-150.0,0.00020598,2]
[386559852,1758394238559,-480.0,0.00020598,2]
[386559853,1758394238569,-480.0,0.00020598,2]
[386559854,1758394238579,-480.0,0.00020598,2]
[386559855,1758394238588,-370.09188797,0.00020598,2]
[386559856,1758394238603,-487.47340476,0.00020598,2]
[386559857,1758394238613,-483.48260203,0.00020598,2]
[386559858,1758394238623,-483.85679427,0.00020598,2]
[386559859,1758394238633,-486.08653928,0.00020598,2]
[386559860,1758394238643,-480.0,0.00020598,2]
[386559861,1758394238652,-318.11660548,0.00020598,2]
[386559862,1758394238662,-447.71090213,0.00020598,2]
[386559863,1758394238673,-470.75255859,0.00020598,2]
[386559864,1758394238683,-480.0,0.00020598,2]
[386559865,1758394238692,-480.0,0.00020598,2]
[386559866,1758394238702,-480.0,0.00020598,2]
[386559867,1758394238712,-480.0,0.00020598,2]
[386559868,1758394238721,-468.46684287,0.00020598,2]
[386559869,1758394238731,-2412.04,0.00020598,2]
[386559870,1758394238740,-372.1,0.00020599,3]
[386559871,1758394238750,-558.18,0.000206,3]
[386559872,1758394238760,-186.05,0.00020601,3]
[386559873,1758394238769,-1330.18,0.00020602,2]
[386559874,1758394238778,-480.0,0.00020602,2]
[386559875,1758394238788,-947.58,0.00020602,2]
[386559876,1758394238798,-431.59102246,0.00020602,2]
[386559877,1758394238811,-799.74897754,0.00020602,2]
[386559878,1758394238820,-1218.8986609,0.00020602,2]
[386559879,1758394238830,-480.0,0.00020602,2]
[386559880,1758394238839,-1152.6,0.00020602,2]
[386559881,1758394238849,-480.0,0.00020602,2]
[386559882,1758394238858,-480.0,0.00020602,2]
[386559883,1758394238868,-654.09,0.00020602,2]
[386559884,1758394238877,-480.0,0.00020602,2]
[386559885,1758394238886,-480.0,0.00020602,2]
[386559886,1758394238896,-489.04067253,0.00020603,2]
[386559887,1758394238905,-160.0,0.00020603,2]
[386559888,1758394238915,-480.0,0.00020603,2]
[386559889,1758394238924,-480.0,0.00020603,2]
[386559890,1758394238934,-491.43,0.00020603,2]
[386559891,1758394238943,-480.0,0.00020603,2]
[386559892,1758394238952,-500.0,0.00020603,2]
[386559893,1758394238963,-500.0,0.00020603,2]
[386559894,1758394238974,-480.0,0.00020603,2]
[386559895,1758394238983,-480.0,0.00020603,2]
[386559896,1758394238992,-480.0,0.00020603,2]
[386559897,1758394239001,-735.45,0.00020603,2]
[386559898,1758394239013,-480.0,0.00020603,2]
[386559899,1758394239025,-480.0,0.00020603,2]
[386559900,1758394239035,-480.0,0.00020603,2]
[386559901,1758394239049,-480.0,0.00020603,2]
[386559902,1758394239060,-480.0,0.00020603,2]
[386559903,1758394239069,-1420.42,0.00020603,2]
[386559904,1758394239079,-480.0,0.00020603,2]
[386559905,1758394239088,-480.0,0.00020603,2]
[386559906,1758394239097,-480.0,0.00020603,2]
[386559907,1758394239106,-579.16801467,0.00020603,2]
[386559908,1758394239119,-690.78198533,0.00020603,2]
[386559909,1758394239128,-322.5612524,0.00020603,2]
[386559910,1758394239140,-157.4387476,0.00020603,2]
[386559911,1758394239150,-480.0,0.00020603,2]
[386559912,1758394239159,-480.0,0.00020603,2]
[386559913,1758394239168,-480.0,0.00020603,2]
[386559914,1758394239177,-480.0,0.00020603,2]
[386559915,1758394239186,-554.81513949,0.00020603,2]
[386559947,1758394240293,-1415.52486051,0.00020603,2]
[386559950,1758394240304,-480.0,0.00020603,2]
[386559952,1758394240313,-480.0,0.00020603,2]
[386559953,1758394240323,-1466.16,0.00020603,2]
[386559955,1758394240332,-480.0,0.00020603,2]
[386559957,1758394240342,-480.0,0.00020603,2]
[386559959,1758394240351,-480.0,0.00020603,2]
[386559961,1758394240360,-480.0,0.00020603,2]
[386559963,1758394240369,-480.0,0.00020603,2]
[386559965,1758394240379,-2347.66660139,0.00020603,2]
[386560235,1758394243341,-229.97339861,0.00020603,2]
[386560237,1758394243350,-1148.03,0.00020604,2]
[386560239,1758394243359,-480.0,0.00020604,2]
[386560241,1758394243368,-2306.2995793,0.00020604,2]
[386560243,1758394243379,-1322.53,0.00020604,2]
[386560245,1758394243388,-480.0,0.00020604,2]
[386560247,1758394243397,-1212.32,0.00020604,2]
[386560249,1758394243407,-407.28539599,0.00020604,2]
[386560586,1758394246575,-72.71460401,0.00020604,2]
[386560598,1758394246681,-480.0,0.00020604,2]
[386560600,1758394246693,-480.0,0.00020604,2]
[386560602,1758394246703,-3320.5659116,0.00020604,2]
[386560604,1758394246712,-508.08,0.00020604,2]
[386560606,1758394246721,-942.48,0.00020604,2]
[386560608,1758394246730,-480.0,0.00020604,2]
[386560610,1758394246739,-480.0,0.00020604,2]
[386560612,1758394246748,-480.0,0.00020604,2]
[386560614,1758394246758,-480.0,0.00020604,2]
[386560616,1758394246767,-480.0,0.00020604,2]
[386560618,1758394246776,-585.62,0.00020604,2]
[386560620,1758394246785,-480.0,0.00020604,2]
[386560622,1758394246794,-480.0,0.00020604,2]
[386560624,1758394246805,-480.0,0.00020604,2]
[386560626,1758394246814,-480.0,0.00020604,2]
[386560628,1758394246823,-500.0,0.00020604,2]
[386560630,1758394246833,-959.86,0.00020604,2]
[386560632,1758394246842,-480.0,0.00020604,2]
[386560634,1758394246852,-744.17,0.00020604,2]
[386560636,1758394246861,-480.0,0.00020604,2]
[386560638,1758394246870,-480.0,0.00020604,2]
[386560640,1758394246879,-480.0,0.00020604,2]
[386560642,1758394246887,-5214.91,0.00020604,2]
[386560644,1758394246896,-163.59,0.00020604,2]
[386560646,1758394246905,-480.0,0.00020604,2]
[386560648,1758394246915,-480.0,0.00020604,2]
[386560650,1758394246924,-1050.68,0.00020604,2]
[386560652,1758394246933,-625.42,0.00020604,2]
[386560654,1758394246942,-480.0,0.00020604,2]
[386560656,1758394246952,-480.0,0.00020604,2]
[386560658,1758394246962,-480.0,0.00020604,2]
[386560660,1758394246971,-9980.32094534,0.00020605,2]
[386560662,1758394246980,-480.0,0.00020605,2]
[386560664,1758394246990,-480.0,0.00020605,2]
[386560666,1758394246999,-480.0,0.00020605,2]
[386560667,1758394247008,-480.0,0.00020605,2]
[386560670,1758394247018,-358.72600664,0.00020605,2]
[386560672,1758394247028,-480.0,0.00020605,2]
[386560674,1758394247037,-480.0,0.00020605,2]
[386560676,1758394247048,-480.0,0.00020605,2]
[386560678,1758394247057,-480.0,0.00020605,2]
[386560680,1758394247066,-480.0,0.00020606,2]
[386560682,1758394247076,-480.0,0.00020606,2]
[386560684,1758394247085,-480.0,0.00020606,2]
[386560686,1758394247094,-480.0,0.00020606,2]
[386560688,1758394247104,-556.49275551,0.00020606,2]
[386560690,1758394247114,-628.9948553,0.00020609,2]
[386560692,1758394247123,-1961.93,0.00020609,2]
[386560694,1758394247132,-500.0,0.00020609,2]
[386560696,1758394247141,-500.0,0.00020609,2]
[386560698,1758394247151,-480.0,0.00020609,2]
[386560700,1758394247160,-11730.42,0.00020609,2]
[386560702,1758394247171,-570.11,0.00020609,2]
[386560704,1758394247180,-1185.08,0.00020609,2]
[386560706,1758394247190,-3203.0022048,0.0002061,2]
[386560708,1758394247199,-480.0,0.0002061,2]
[386560710,1758394247208,-1189.67,0.0002061,2]
[386560712,1758394247218,-500.0,0.0002061,2]
[386560714,1758394247227,-500.0,0.0002061,2]
[386560716,1758394247236,-500.0,0.0002061,2]
[386560718,1758394247245,-500.0,0.0002061,2]
[386560720,1758394247255,-480.0,0.0002061,2]
[386560722,1758394247264,-84486.58789001,0.00020611,2]
[386560724,1758394247275,-7924.2411638,0.00020611,2]
[386560726,1758394247285,-165.007498,0.00020611,2]
[386560728,1758394247294,-181.653,0.00020616,2]
[386560730,1758394247304,-617.8745209,0.00020618,2]
[386560732,1758394247313,-551.74412036,0.00020618,2]
[386560734,1758394247322,-500.0,0.00020673,2]
[386560735,1758394247331,-500.0,0.00020673,2]
[386560737,1758394247340,-600.6141563,0.00020673,2]
[386560739,1758394247350,-500.0,0.00020673,2]
[386560741,1758394247359,-500.0,0.00020673,2]
[386560743,1758394247369,-500.0,0.00020673,2]
[386560745,1758394247378,-500.0,0.00020673,2]
[386560747,1758394247387,-500.0,0.00020673,2]
[386560749,1758394247396,-2935.7284686,0.00020757,2]
[386560751,1758394247406,-8776.07313372,0.00020778,2]
[386560753,1758394247415,-500.0,0.00020814,2]
[386560755,1758394247425,-231.5,0.00020815,2]
[386560757,1758394247434,-164.88,0.00020815,2]
[386560759,1758394247443,-164.88,0.00020815,2]
[386560761,1758394247452,-164.88,0.00020815,2]
[386560763,1758394247462,-164.88,0.00020815,2]
[386560765,1758394247471,-164.88,0.00020815,2]
[386560767,1758394247480,-385.67752521,0.00020816,2]
[386560769,1758394247489,-480.0,0.0002087,2]
[386560771,1758394247498,-1281.87,0.0002087,2]
[386560773,1758394247507,-480.0,0.00020872,2]
[386560775,1758394247515,-2412.04,0.00020872,2]
[386560777,1758394247524,-1330.18,0.00020876,2]
[386560779,1758394247534,-480.0,0.00020876,2]
[386560780,1758394247543,-947.58,0.00020876,2]
[386560782,1758394247553,-1231.34,0.00020876,2]
[386560784,1758394247563,-1152.6,0.00020876,2]
[386560786,1758394247572,-480.0,0.00020876,2]
[386560788,1758394247583,-480.0,0.00020876,2]
[386560791,1758394247595,-654.09,0.00020876,2]
[386560793,1758394247610,-480.0,0.00020876,2]
[386560796,1758394247624,-357.96199421,0.00020877,2]
[386560798,1758394247637,-480.0,0.00020877,2]
[386560800,1758394247649,-491.43,0.00020877,2]
[386560803,1758394247660,-480.0,0.00020877,2]
[386560805,1758394247673,-500.0,0.00020877,2]
[386560807,1758394247686,-480.0,0.00020877,2]
[386560810,1758394247700,-480.0,0.00020877,2]
[386560812,1758394247712,-480.0,0.00020877,2]
[386560814,1758394247725,-735.45,0.00020877,2]
[386560816,1758394247737,-535.3,0.00020877,2]
[386560819,1758394247751,-480.0,0.00020877,2]
[386560821,1758394247764,-480.0,0.00020877,2]
[386560823,1758394247776,-480.0,0.00020877,2]
[386560826,1758394247788,-1420.42,0.00020877,2]
[386560828,1758394247800,-480.0,0.00020877,2]
[386560830,1758394247812,-480.0,0.00020877,2]
[386560832,1758394247825,-480.0,0.00020877,2]
[386560835,1758394247838,-1269.95,0.00020877,2]
[386560837,1758394247850,-480.0,0.00020877,2]
[386560839,1758394247862,-480.0,0.00020877,2]
[386560841,1758394247873,-480.0,0.00020877,2]
[386560843,1758394247884,-480.0,0.00020877,2]
[386560845,1758394247895,-480.0,0.00020877,2]
[386560848,1758394247908,-1970.34,0.00020877,2]
[386560850,1758394247921,-480.0,0.00020877,2]
[386560852,1758394247934,-480.0,0.00020877,2]
[386560855,1758394247947,-1466.16,0.00020877,2]
[386560857,1758394247961,-480.0,0.00020877,2]
[386560859,1758394247973,-480.0,0.00020877,2]
[386560862,1758394247987,-480.0,0.00020877,2]
[386560864,1758394247997,-2577.64,0.00020877,2]
[386560866,1758394248008,-363.9288772,0.00020878,2]
[386560868,1758394248020,-1148.03,0.00020878,2]
[386560870,1758394248032,-275.50456628,0.00020878,2]
[386560872,1758394248045,-1322.53,0.00020878,2]
[386560875,1758394248060,-480.0,0.00020878,2]
[386560877,1758394248073,-1212.32,0.00020878,2]
[386560879,1758394248084,-508.08,0.00020878,2]
[386560881,1758394248095,-942.48,0.00020878,2]
[386560883,1758394248107,-480.0,0.00020878,2]
[386560886,1758394248120,-480.0,0.00020878,2]
[386560888,1758394248132,-480.0,0.00020878,2]
[386560890,1758394248144,-480.0,0.00020878,2]
[386560892,1758394248155,-585.62,0.00020878,2]
[386560894,1758394248165,-480.0,0.00020878,2]
[386560896,1758394248176,-959.86,0.00020878,2]
[386560899,1758394248188,-744.17,0.00020878,2]
[386560901,1758394248199,-480.0,0.00020878,2]
[386560903,1758394248211,-5214.91,0.00020878,2]
[386560905,1758394248223,-480.0,0.00020878,2]
[386560907,1758394248235,-1050.68,0.00020878,2]
[386560910,1758394248247,-480.0,0.00020878,2]
[386560912,1758394248258,-484.8,0.00020878,2]
[386560914,1758394248270,-480.0,0.00020879,2]
[386560916,1758394248281,-480.0,0.00020879,2]
[386560918,1758394248293,-480.0,0.00020879,2]
[386560920,1758394248304,-480.0,0.0002088,2]
[386560923,1758394248315,-500.0,0.00020882,2]
[386560925,1758394248326,-1961.93,0.00020883,2]
[386560927,1758394248337,-500.0,0.00020883,2]
[386560929,1758394248348,-480.0,0.00020883,2]
[386560931,1758394248360,-11730.42,0.00020883,2]
[386560933,1758394248372,-570.11,0.00020883,2]
[386560936,1758394248386,-1185.08,0.00020883,2]
[386560938,1758394248397,-151.0,0.00020884,2]
[386560940,1758394248408,-1189.67,0.00020884,2]
[386560942,1758394248419,-480.0,0.00020884,2]
[386560944,1758394248430,-282.12,0.00020988,2]
[386560946,1758394248441,-2198.0,0.00020988,2]
[386560949,1758394248452,-977.0,0.00020988,2]
[386560951,1758394248463,-2158.0,0.00020988,2]
[386560953,1758394248474,-634.0,0.00020988,2]
[386560955,1758394248485,-150.0,0.00020988,2]
[386560957,1758394248497,-250.0,0.00020988,2]
[386560959,1758394248509,-49726.95978038,0.0002099,2]
[386560962,1758394248520,-151.0,0.0002099,2]
[386560964,1758394248531,-185.20007916,0.00021037,2]
[386560966,1758394248542,-157.2,0.00021048,2]
[386560968,1758394248553,-480.0,0.00021144,2]
[386560970,1758394248564,-1281.87,0.00021144,2]
[386560972,1758394248575,-480.0,0.00021146,2]
[386560975,1758394248587,-2412.04,0.00021146,2]
[386560977,1758394248600,-1330.18,0.0002115,2]
[386560978,1758394248612,-480.0,0.0002115,2]
[386560979,1758394248623,-947.58,0.0002115,2]
[386560980,1758394248635,-1231.34,0.0002115,2]
[386560981,1758394248645,-1152.6,0.0002115,2]
[386560982,1758394248655,-480.0,0.0002115,2]
[386560983,1758394248664,-480.0,0.0002115,2]
[386560984,1758394248673,-654.09,0.0002115,2]
[386560985,1758394248684,-480.0,0.0002115,2]
[386560986,1758394248693,-480.0,0.00021151,2]
[386560987,1758394248703,-491.43,0.00021151,2]
[386560988,1758394248849,-480.0,0.00021151,2]
[386560989,1758394248859,-480.0,0.00021151,2]
[386560990,1758394248878,-480.0,0.00021151,2]
[386560991,1758394248888,-480.0,0.00021151,2]
[386560992,1758394248899,-735.45,0.00021151,2]
[386560993,1758394248908,-480.0,0.00021151,2]
[386560994,1758394248918,-480.0,0.00021151,2]
[386560995,1758394248928,-480.0,0.00021151,2]
[386560996,1758394248938,-1420.42,0.00021151,2]
[386560997,1758394248948,-480.0,0.00021151,2]
[386560998,1758394248958,-480.0,0.00021151,2]
[386560999,1758394248967,-480.0,0.00021151,2]
[386561000,1758394248978,-1269.95,0.00021151,2]
[386561001,1758394248987,-480.0,0.00021151,2]
[386561002,1758394248997,-480.0,0.00021151,2]
[386561003,1758394249008,-480.0,0.00021151,2]
[386561004,1758394249018,-480.0,0.00021151,2]
[386561005,1758394249028,-480.0,0.00021151,2]
[386561006,1758394249039,-1970.34,0.00021151,2]
[386561007,1758394249049,-480.0,0.00021151,2]
[386561008,1758394249059,-1466.16,0.00021151,2]
[386561009,1758394249070,-163.08866682,0.00021151,2]
[386561010,1758394249080,-480.0,0.00021151,2]
[386561011,1758394249091,-2577.64,0.00021151,2]
[386561012,1758394249100,-8198.97030545,0.00021152,2]
[386561013,1758394249110,-1148.03,0.00021152,2]
[386561014,1758394249120,-1322.53,0.00021152,2]
[386561015,1758394249131,-480.0,0.00021152,2]
[386561016,1758394249141,-1212.32,0.00021152,2]
[386561017,1758394249151,-508.08,0.00021152,2]
[386561018,1758394249160,-942.48,0.00021152,2]
[386561019,1758394249170,-480.0,0.00021152,2]